Cogmind - Beta 17 @@@ ROGUE MODE // 2026.08.01 @ 11:53:55 Player: naththebg Result: Destroyed by S-10 Pest with Light Assault Rifle Performance ------------- Evolutions (0) 0 Regions Visited (2) 400 Robots Destroyed (27) 135 Value Destroyed (674) 674 Prototype IDs (1) 20 Alien Tech Used (0) 0 Bonus (5850) 5850 TOTAL SCORE: 7079 Bonus ------- Prayed to X0-1V1 5000 Major X0-1V1 Interference 850 Cogmind --------- Core Integrity 0/150 Matter 240/700 Energy 1145/1300 System Corruption 15% Temperature Cool (0) Movement Walking (120) Location -10/Subcaves Parts ------- > --- POWER (1) -------- Subdweller Power Source > --- PROPULSION (2) --- Aluminum Leg Aluminum Leg > --- UTILITY (2) ------ Small Storage Unit Light Armor Plating > --- WEAPON (2) ------- Small Laser > --- INVENTORY (8) ---- Wheel Makeshift Light Armor Plating X0-1V1's Piety Tracker Peak State ------------ > --- POWER ------------ Light Ion Engine > --- PROPULSION ------- Light Treads Light Treads > --- UTILITY ---------- Small Storage Unit X0-1V1's Piety Tracker > --- WEAPON ----------- Beam Rifle Grenade Launcher > --- INVENTORY -------- Subdweller Power Source Aluminum Leg Aluminum Leg Wheel Light Armor Plating Makeshift Light Armor Plating Small Laser [Rating: 21] Favorites ----------- Power Light Ion Engine Engine Light Ion Engine Propulsion Aluminum Leg Treads Light Treads Leg Aluminum Leg Utility Small Storage Unit Device X0-1V1's Piety Tracker Storage Small Storage Unit Protection Light Armor Plating Weapon Small Laser Energy Gun Small Laser Energy Cannon Beam Cannon Ballistic Gun Assault Rifle Launcher Grenade Launcher Build | -11 -10 -10 ------- Run | Yrd Mat Sub Slots Evolved . | . . . Power . | . . . Propulsion . | . . . Utility . | . . . Weapon . | . . . Parts Attached 17 | 6 5 6 Power 3 | 1 . 2 Engine 3 | 1 . 2 Core . | . . . Reactor . | . . . Propulsion 5 | 2 2 1 Treads 3 | . 2 1 Leg 2 | 2 . . Wheel . | . . . Hover . | . . . Flight . | . . . Utility 3 | 1 1 1 Device 1 | . 1 . Storage 1 | 1 . . Processor . | . . . Hackware . | . . . Protection 1 | . . 1 Artifact . | . . . Weapon 6 | 2 2 2 Energy Gun 2 | 1 . 1 Energy Cannon 1 | . . 1 Ballistic Gun 2 | 1 1 . Ballistic Cannon . | . . . Launcher 1 | . 1 . Special Weapon . | . . . Impact Weapon . | . . . Slashing Weapon . | . . . Piercing Weapon . | . . . Special Melee Weapon . | . . . Unidentified Prototypes 1 | . 1 . Parts Lost 6 | . . 6 Power 1 | . . 1 Propulsion 2 | . . 2 Utility . | . . . Weapon 3 | . . 3 Highest Loss Streak 3 | . . 3 To Critical Strikes . | . . . Average Backups 6 | 3 7 6 Power . | . 1 . Propulsion 3 | 2 4 3 Utility 1 | . . 1 Weapon 1 | . 1 . Tool/Special . | . . . Unused Backups 5 | . 1 4 Power 1 | . . 1 Propulsion 2 | . 1 1 Utility 2 | . . 2 Weapon . | . . . Tool/Special . | . . . Average Slot Usage (%) 87 | . 85 89 Engine 13 | . 14 13 Treads 11 | . . 18 Leg 13 | . 28 4 Device 6 | . . 10 Storage 14 | . 14 14 Protection 2 | . . 3 Energy Gun 12 | . 7 16 Ballistic Gun 7 | . 14 2 Launcher 4 | . 7 2 Peak Build Rating 21 | 6 19 21 Average Rating 12 | 4 6 16 On Entrance 8 | . 6 19 Avg Prop Armor Cover (%) . | . . . Naked Turns . | . . . Heaviest Build 17 | 11 13 17 Greatest Support 40 | 20 40 40 Greatest Overweight (x) . | . . . Average Overweight (x) . | . . . Largest Inventory Capacity 8 | 8 8 8 Average Capacity 7 | 6 8 8 Most Carried 8 | 6 8 8 Average Carried 6 | 3 7 5 Final Capacity 8 | 8 8 8 Final Carried 8 | 6 8 3 Class Distribution -------------------- 100% | Mutant Dominant Class ---------------- Mutant | -10/Materials Mutant | -10/Subcaves Resources | -11 -10 -10 ----------- Run | Yrd Mat Sub Matter Collected 656 | 242 178 236 Remotely . | . . . Salvage Created 619 | . 328 291 Parts 42 | . 17 25 Haulers Intercepted 2 | . 2 . Recyclers Shooed . | . . . Parts Field Recycled . | . . . Retrieved Matter . | . . . Parts Self-Destructed 17 | . . 17 Prevented . | . . . Parts Restored . | . . . Kills | -11 -10 -10 ------- Run | Yrd Mat Sub Combat Hostiles Destroyed 20 | . 8 12 Guns 8 | . . 8 AOE 12 | . 8 4 Classes Destroyed 7 | . 6 1 Worker 1 | . 1 . Hauler 2 | . 2 . Recycler 1 | . 1 . Watcher 3 | . 3 . Swarmer 6 | . 3 3 Grunt 8 | . 5 3 Subdweller 6 | . . 6 Best Kill Streak 7 | . 7 4 Combat Bots Only 4 | . 4 4 Max Kills in Single Turn 3 | . 2 3 Gunslinging . | . . . Exploded 3 | . 2 3 Melee . | . . . Uniques/NPCs Destroyed . | . . . Combat | -11 -10 -10 -------- Run | Yrd Mat Sub Hostile Shots Fired 86 | . 17 69 Missed 21 | . 4 17 Hits 65 | . 13 52 Projectile 65 | . 13 52 AOE 3 | . . 3 Critical Strikes 1 | . 1 . Damage Taken 1202 | . 222 980 Core 216 | . 43 173 Absorbed by Shields . | . . . Core Remaining (%) 100 | 100 . . Volleys Fired 72 | . 28 44 Largest 2 | . 2 2 Hottest 116 | . 60 116 Shots Fired 100 | . 36 64 Gun 70 | . 20 50 Cannon 8 | . . 8 Launcher 22 | . 16 6 Special . | . . . Kinetic 19 | . 12 7 Thermal 59 | . 8 51 Explosive 22 | . 16 6 Electromagnetic . | . . . Robot Hit Streak 14 | . 13 14 Robot Miss Streak 4 | . 1 4 Penetration Max . | . . . Secondary Targets . | . . . Shots Hit Robots 65 | . 22 43 Core Hits 42 | . 23 19 Critical Kills . | . . . Critical Parts Destroyed . | . . . Critical Strikes 2 | . . 2 Burn 1 | . . 1 Destroy 1 | . . 1 Melee Attacks . | . . . Impact . | . . . Slashing . | . . . Piercing . | . . . Sneak Attacks . | . . . Combat Hostiles . | . . . Follow-up Attacks . | . . . Damage Inflicted 1981 | . 1214 767 Guns 652 | . 211 441 Cannons 88 | . . 88 Explosions 1238 | . 1000 238 Melee . | . . . Ramming 3 | . 3 . Kinetic 197 | . 135 62 Thermal 696 | . 229 467 Explosive 1085 | . 847 238 Electromagnetic . | . . . Impact . | . . . Slashing . | . . . Piercing . | . . . Highest Corruption 15 | . . 15 Average Corruption 6 | . . 6 Corruption Purged . | . . . Corruption Blocked . | . . . Effects 6 | . . 6 Matter Fused 3 | . . 3 Energy Discharges 1 | . . 1 Data Loss (minor) 1 | . . 1 Misfires 1 | . . 1 Overload Shots . | . . . Overflow Damage 62 | . 62 . Projectiles . | . . . Explosions 62 | . 62 . Melee . | . . . Knockbacks . | . . . Impact . | . . . Kinetic . | . . . Secondary . | . . . Self-Inflicted Damage 53 | . 53 . Shots 3 | . 3 . Rammed . | . . . Targets Rammed 1 | . 1 . Kicked 1 | . 1 . Crushed . | . . . Highest Temperature 22 | . 22 18 Average Temperature 10 | . 9 12 Received Heat Transfer 189 | . 111 78 Siege Activations . | . . . Martial Activations . | . . . Shielding Activations . | . . . Robots Disrupted . | . . . Combat Hostiles . | . . . Robots Corrupted . | . . . Combat Hostiles . | . . . Parts Fried . | . . . Impact Corruptions . | . . . Robots Melted . | . . . Combat Hostiles . | . . . Parts Melted 4 | . 2 2 Heat Transferred 1441 | . 275 1166 Parts Sabotaged . | . . . Parts Stolen . | . . . Parts Stripped . | . . . Power Chain Reactions . | . . . Alert | -11 -10 -10 ------- Run | Yrd Mat Sub Maximum Alert Level 1 | . 1 . Low Security (%) 89 | 100 87 . Level 1 10 | . 12 . Level 2 . | . . . Level 3 . | . . . Level 4 . | . . . Level 5 . | . . . High Security . | . . . Max Security . | . . . Peak Influence 281 | . 281 . Initial . | . . . Average 97 | . 111 . Influence Increases 554 | . 404 150 Destroy 0b10 Robot/C 280 | . 160 120 Destroy 0b10 Robot/NC 35 | . 35 . Destroy Leader 30 | . 30 . Successful Hack 4 | . 4 . Disable Machine 45 | . 45 . Destroy Structure 70 | . 70 . Lose Combat Pursuer 90 | . 60 30 Influence Decreases 512 | . 346 166 Entered New Map 29 | . . 29 Time Decay 307 | . 196 111 Lost Part 26 | . . 26 Purge Threat 150 | . 150 . Squads Dispatched . | . . . Investigation . | . . . Extermination . | . . . Reinforcement . | . . . Assault . | . . . Garrison . | . . . Intercept . | . . . Searches Triggered . | . . . Construction Impeded . | . . . Haulers Reinforced . | . . . Active Scanning Responses . | . . . Cargo Convoy Interrupts . | . . . Stealth | -11 -10 -10 --------- Run | Yrd Mat Sub Distress Signals 2 | . 2 . Communications Jammed . | . . . Distress Signals . | . . . Times Spotted 34 | . 15 19 Peak Tracking Total 6 | . 6 6 Tactical Retreats 5 | . 4 1 Traps | -11 -10 -10 ------- Run | Yrd Mat Sub Traps Triggered . | . . . Indirectly . | . . . Trap Hack Attempts . | . . . Triggered . | . . . Disarmed . | . . . Reprogrammed . | . . . Reused . | . . . Traps Extracted . | . . . Installed . | . . . Triggered . | . . . Machines | -11 -10 -10 ---------- Run | Yrd Mat Sub Machines Disabled 3 | . 3 . Max in Single Turn 2 | . 2 . Machines Repaired . | . . . Machines Dismantled . | . . . Machines Sabotaged . | . . . Overloaded Fab Kills . | . . . Hacking | -11 -10 -10 --------- Run | Yrd Mat Sub Machines Accessed 5 | . 5 . Terminals 4 | . 4 . Fabricators . | . . . Repair Stations . | . . . Recycling Units 1 | . 1 . Scanalyzers . | . . . Garrison Access . | . . . Total Hacks 11 | . 11 . Successful 5 | . 5 . Failed 6 | . 6 . Catastrophic 1 | . 1 . Database Lockouts . | . . . Manual 3 | . 3 . Terminals 8 | . 8 . Fabricators . | . . . Repair Stations . | . . . Recycling Units 3 | . 3 . Scanalyzers . | . . . Garrison Access . | . . . Terminal Hacks 4 | . 4 . Alert Level 1 | . 1 . Unreport Threat 1 | . 1 . Locate Traps 1 | . 1 . Zone Layout 1 | . 1 . Fabricator Hacks . | . . . Repair Station Hacks . | . . . Recycling Unit Hacks . | . . . Scanalyzer . | . . . Garrison Access Hacks . | . . . Unauthorized Hacks 1 | . 1 . Terminals 1 | . 1 . Botnet 1 | . 1 . Fabricators . | . . . Repair Stations . | . . . Recycling Units . | . . . Scanalyzers . | . . . Garrison Access . | . . . Data Cores Recovered . | . . . Used . | . . . Hacking Detections 5 | . 5 . Full Trace Events . | . . . Feedback Events . | . . . Feedback Blocked . | . . . Robot Schematics Acquired . | . . . Robots Built . | . . . Authchips . | . . . Time . | . . . Total Robot Build Rating . | . . . Part Schematics Acquired . | . . . Parts Built . | . . . Authchips . | . . . Time . | . . . Total Part Build Rating . | . . . Part Studies Acquired . | . . . Parts Repaired . | . . . Time . | . . . Parts Recycled . | . . . Recycled Matter . | . . . Retrieved Matter . | . . . Retrieved Components . | . . . Parts Scanalyzed . | . . . Part Schematics Acquired . | . . . Parts Damaged . | . . . Bothacking | -11 -10 -10 ------------ Run | Yrd Mat Sub Used RIF Installer . | . . . Robots Hacked . | . . . Non-combat . | . . . Combat . | . . . Robot Hacks Applied . | . . . Relay Couplers Released . | . . . Fabnet Peak Effective % . | . . . Robots Rewired . | . . . Allies Hacked . | . . . Hacks Repelled . | . . . Allies | -11 -10 -10 -------- Run | Yrd Mat Sub Total Allies . | . . . Largest Group . | . . . Highest-Rated Group . | . . . Highest-Rated Ally . | . . . Total Orders . | . . . Ally Attacks . | . . . Total Damage . | . . . Kills . | . . . Allies Corrupted . | . . . Allies Melted . | . . . X0-1V1 Amusement Gains 15 | . 15 . Good Acts 10 | . . 10 Bad Acts 10 | . . 10 Intel | -11 -10 -10 ------- Run | Yrd Mat Sub Active Infowar (turns) . | . . . Robot Analysis Total . | . . . Derelict Logs Recovered . | . . . Drone Launches . | . . . Drone Recoveries . | . . . Exploration | -11 -10 -10 ------------- Run | Yrd Mat Sub Turns Passed 1173 | 63 435 675 Spaces Moved 686 | 42 288 356 Core 3 | 3 . . Treads 282 | . 1 281 Legs 401 | 39 287 75 Wheels . | . . . Hover . | . . . Flight . | . . . Fastest Speed 50 | 50 120 120 Average Speed 136 | 115 120 151 Slowest Speed 160 | 120 160 160 Overloaded Moves . | . . . Propulsion Burnouts . | . . . Robots Hopped . | . . . Potential Cave-ins . | . . . Cave-ins Triggered . | . . . Exploration Rate (%) 30 | 5 47 39 Regions Visited 2 Branch Regions 1 Pre-discovered Areas . | . . . Known Exits Taken . | . . . Unknown Exits Taken 2 | 1 1 . Scrap Searched . | . . . Spaces Dug . | . . . Terrain Destroyed 113 | . 81 32 Melee . | . . . Projectile . | . . . AOE 113 | . 81 32 Terrain Rammed . | . . . Walls Destroyed . | . . . Machines Disabled . | . . . Actions | -11 -10 -10 --------- Run | Yrd Mat Sub Total 819 | 53 339 427 Wait 20 | . 11 9 Move 684 | 41 287 356 Hop . | . . . Pick Up 14 | 6 4 4 Fast Attach 8 | 6 1 1 Attach 6 | . . 6 Detach . | . . . Swap 10 | . 5 5 Drop 4 | . 2 2 Fire 72 | . 28 44 Melee . | . . . Ram . | . . . Kick 1 | . 1 . Crush . | . . . Escape Stasis . | . . . Rewire . | . . . Trap . | . . . Miscellaneous . | . . . Route ------- -11/Scrapyard -10/Materials (discovered 4 exits: [*Mat x2] / [*Min] / [*Sub]) -10/Subcaves (discovered 1 exit: *Rec) History --------- Turn | Location | Event 20 | -11/Scrapyard | Discovered new exit (range 16) 64 | -11/Scrapyard | Entered Materials 184 | -10/Materials | Discovered new exit (range 16) 239 | -10/Materials | Discovered new exit (range 11) 310 | -10/Materials | Build established: Mutant 355 | -10/Materials | Discovered new exit (range 16) 468 | -10/Materials | Discovered new exit (range 11) 485 | -10/Materials | Prayed at D.C.S.S. Altar Unit 499 | -10/Materials | Entered Subcaves 500 | -10/Subcaves | Approached by a straggling Scientist 512 | -10/Subcaves | A swath of the cavern ceiling suddenly collapsed 625 | -10/Subcaves | Shifting Twisted Machinery released Flamer 625 | -10/Subcaves | Shifting Twisted Machinery released Sub. Power Source 659 | -10/Subcaves | Energy capacity permanently improved by X0-1V1 (+200; -100 max core) 779 | -10/Subcaves | Shifting Twisted Machinery released Mak. Light Armor Plating 780 | -10/Subcaves | Shifting Twisted Machinery released Flamer 863 | -10/Subcaves | X0-1V1 sent hostile G-34 Mercenary (x3) 925 | -10/Subcaves | Identified exit to Recycling 925 | -10/Subcaves | X0-1V1 revealed exit location to -9/Recycling 938 | -10/Subcaves | Core integrity fell below 50% 960 | -10/Subcaves | Core integrity fell below 20% 970 | -10/Subcaves | Lost 3 parts (1n2w) 1157 | -10/Subcaves | System corruption reached 10% 1171 | -10/Subcaves | X0-1V1 sent hostile S-10 Pest (x5) 1174 | -10/Subcaves | Destroyed by S-10 Pest with Light Assault Rifle Last Messages --------------- 01095_ Flight Unit fries itself beyond repair. 01120_ System corrupted: Matter fused (-6). 01128_ Subatomizers dissect the Sub. Optics. 01153_ System corrupted: Energy discharge (-390). 01154_ X0-1V1 is bored! 01155_ X0-1V1 lends a hand with your twisted circuits (-6 system corruption). 01156_ X0-1V1 brushes you with a corrupting influence (+15 system corruption). 01160_ X0-1V1: "In a world full of sensor tech, vision is overrated." (-8 sight range) 01162_ X0-1V1: "I had everything to do with that." 01168_ System corrupted: Component data lost. 01171_ X0-1V1: "C'mon, do something!" S-10 Pest form resolidifies at new position. 01173_ X0-1V1: "The ol' switcheroo!" S-10 Pest form resolidifies at new position. Form resolidifies at new position. S-10 Pest form resolidifies at new position. 01174_ X0-1V1: "It was about time." Map ----- +----------------------------------------------------+ | #" ##?# ##?## #??????????#^ ???? | | ?###" ##??# ##??## ##??###?????# #???? | | ???# #???# ###??## ####"##????" #???? | | ???## #???###?????# # ""##???# ###?? | | ????# #?###???????# ""##?##" #?? | | ????## ## ##??????# "" #?#" #?? | | ?????# # ###????# # ""### #?? | | ?????# #???## #### " " ##?# | | ?????# #???# #### " ### | | ?????## & & #???# ##"" ### | | ??????## "& & ## #??# ### """""" | | ???????## "! & ""#??##?## ### #####"" | | ????????##" #????## ##?#""##??##""" | | ????????# ####?## ##??####????###### ## | | ????????# " ### #???????????????#"| ## | | ???????### #?????????????? ""### | | ?????### ##???????????# ## | | ????## ###?????????# ### | | ???## # #?????????# ??## | | ???# # # ##?????????# #??# | | ???# #" "" ### % ##????????## ???## | | ???# ##"" ######?## ##????????# ???##" | | ???###?#"" #???????# % #????????? ??##"" | | ?????? #" #??????#### ##??????????? """ | | ????# "" ?????## ## s ##???????????? ##"# | | ????# # #????# s@s ##????????????????##? | | ????# ##???# ss ##???????????????????? | | ????# ##?# ##????????????????????? | | ????# ### #?# #?????????????????????# | | ????# ??## ## #????????????????"" ### | | ????# ??? ??# #???????????????? " "" | | ???? ???# ## #??? ##??????????????????#"" | | ???# ????# ?#???? #????????????????????#### | | ???## ????? ?????# ????????????????????????# | | ????# ?????? ?????### ?????????????????????#### | | ????##??????" ##??????# ??????????????????" """ | | ???????????? #??????? ??????????????????? "| | | ???????????? #????????# ???????????????????# "" | | ??????????????????????# ??????????????????? ## " | | ?????????????????????????????????????????? " | | ?????????????????????????????????????????? ## | | ????????????????????????????????????????????## #?# | | ?????????????????????????????????????????????#???? | | ?????????????????????????????????????????????????? | | ??????????????????????????????????????????????? ?# | | ?????????????????????????????????????????????? | | ?????????????????????????????????????????????????? | | ?????????????????????????????????????????????????? | | ?????????????????????????????????????????????????? | | ?????????????????????????????????????????????????? | +----------------------------------------------------+ Best States ------------- Heat Dissipation 25 Energy Generation 15 Energy Capacity 1300 Matter Stores 305 Matter Capacity 700 Sight Range 22 Terrain Scan Density 10 Armor Coverage 150 Evasion (%) 55 Recoil Reduction 2 Item Schematics ----------------- None Robot Schematics ------------------ None Fabricated ------------ Nothing Repaired ---------- Nothing Studied --------- None Alien Tech Used ----------------- None Achievements -------------- None Challenges ------------ None Game ------ Seed CommMicroTrap Manual? 0 Play Time 00:09:22 Cumulative 528.8 hours Start 2026.08.01 @ 11:45:20 End 2026.08.01 @ 11:53:55 Sessions 1 Manual Loads 0 Difficulty Rogue Special Mode None Game No. 265 Rogue 265 Adventurer 0 Explorer 0 Win Type - Total 18 Types 10/0/3/1/1/0/0/1/0/2 Lore% 86 Gallery% 82 Achievement% 71 Wizard Run 0 Options --------- Layout 0 ASCII 0 Keyboard 0 Movement Mouse Keybinds 0 Fullscreen 1 Font 18/SmallcapsGlow Map View 76x50 Zoom Use 0% Tactical HUD 1 Map Filters NONE Filters NONE Steam 1 RUN: 0a9f27e1-1435-48a8-ba00-cffbddfaf0f6